[Event "Titled Tuesday Blitz March 28 Late 2023"]
[White "Torres Dominguez, David"]
[Black "Tsukerman, Julia"]
[WhiteFideId "2220857"]
[BlackFideId "2621649"]
[WhiteElo "1999"]
[BlackElo "1667"]
[Result "0-1"]
[Round "07"]
[TimeControl "180+2"]
[Date "2023.03.28"]
[WhiteClock "0:00:04"]
[BlackClock "0:00:07"]

1. e4 {[%clk 0:03:00]}  c5 {[%clk 0:02:59]} 2. Nc3 {[%clk 0:03:00]}  Nc6 {[%clk 0:02:58]} 3. Bb5 {[%clk 0:03:00]}  Nd4 {[%clk 0:02:57]} 4. Bc4 {[%clk 0:03:00]}  e6 {[%clk 0:02:57]} 5. Nge2 {[%clk 0:03:00]}  Ne7 {[%clk 0:02:53]} 6. O-O {[%clk 0:02:59]}  g6 {[%clk 0:02:53]} 7. Nxd4 {[%clk 0:02:57]}  cxd4 {[%clk 0:02:53]} 8. Nb5 {[%clk 0:02:55]}  d5 {[%clk 0:02:48]} 9. e5 {[%clk 0:02:38]}  Nc6 {[%clk 0:02:30]} 10. Bb3 {[%clk 0:02:34]}  a6 {[%clk 0:02:20]} 11. Nd6+ {[%clk 0:02:34]}  Bxd6 {[%clk 0:02:20]} 12. exd6 {[%clk 0:02:34]}  Qxd6 {[%clk 0:02:20]} 13. d3 {[%clk 0:02:31]}  O-O {[%clk 0:02:18]} 14. Re1 {[%clk 0:02:31]}  Bd7 {[%clk 0:02:14]} 15. Qf3 {[%clk 0:02:27]}  Kg7 {[%clk 0:01:54]} 16. h4 {[%clk 0:01:55]}  h5 {[%clk 0:01:46]} 17. c4 {[%clk 0:01:44]}  dxc4 {[%clk 0:01:41]} 18. dxc4 {[%clk 0:01:34]}  Na5 {[%clk 0:01:29]} 19. Bc2 {[%clk 0:01:31]}  Nxc4 {[%clk 0:01:20]} 20. Bf4 {[%clk 0:01:28]}  e5 {[%clk 0:01:16]} 21. Bg3 {[%clk 0:01:25]}  Bc6 {[%clk 0:01:14]} 22. Qe2 {[%clk 0:01:21]}  Qc5 {[%clk 0:00:57]} 23. Bd3 {[%clk 0:01:11]}  Qd5 {[%clk 0:00:49]} 24. Qf1 {[%clk 0:00:47]}  Nxb2 {[%clk 0:00:41]} 25. Bxe5+ {[%clk 0:00:40]}  f6 {[%clk 0:00:40]} 26. Be4 {[%clk 0:00:31]}  Qb5 {[%clk 0:00:31]} 27. Bxc6 {[%clk 0:00:25]}  Qxc6 {[%clk 0:00:24]} 28. Bxd4 {[%clk 0:00:25]}  Na4 {[%clk 0:00:20]} 29. Rac1 {[%clk 0:00:24]}  Qd7 {[%clk 0:00:20]} 30. Ba1 {[%clk 0:00:15]}  Nb6 {[%clk 0:00:18]} 31. Red1 {[%clk 0:00:15]}  Qf7 {[%clk 0:00:17]} 32. Rb1 {[%clk 0:00:13]}  Nd5 {[%clk 0:00:15]} 33. Qc4 {[%clk 0:00:12]}  Rfd8 {[%clk 0:00:14]} 34. Qb3 {[%clk 0:00:10]}  Rab8 {[%clk 0:00:13]} 35. Qb2 {[%clk 0:00:10]}  Ne7 {[%clk 0:00:10]} 36. Rxd8 {[%clk 0:00:09]}  Rxd8 {[%clk 0:00:10]} 37. Rc1 {[%clk 0:00:09]}  Rd7 {[%clk 0:00:10]} 38. Kh2 {[%clk 0:00:06]}  Nf5 {[%clk 0:00:10]} 39. g3 {[%clk 0:00:06]}  Re7 {[%clk 0:00:09]} 40. Rc8 {[%clk 0:00:05]}  Rd7 {[%clk 0:00:08]} 41. Rb8 {[%clk 0:00:04]}  Nd6 {[%clk 0:00:07]} 0-1


[Site "https://www.chess.com"]

[Event "Titled Tuesday Blitz March 28 Late 2023"]
[White "Pein, Jonathan"]
[Black "Narva, Triin"]
[WhiteFideId "417092"]
[BlackFideId "4502680"]
[WhiteElo "2151"]
[BlackElo "1944"]
[Result "0-1"]
[Round "07"]
[TimeControl "180+2"]
[Date "2023.03.28"]
[WhiteClock "0:00:34"]
[BlackClock "0:00:08"]

1. e4 {[%clk 0:02:55]}  d5 {[%clk 0:02:59]} 2. Nc3 {[%clk 0:02:52]}  d4 {[%clk 0:02:58]} 3. Nce2 {[%clk 0:02:53]}  e5 {[%clk 0:02:58]} 4. Ng3 {[%clk 0:02:53]}  c5 {[%clk 0:02:57]} 5. Bb5+ {[%clk 0:02:53]}  Nc6 {[%clk 0:02:55]} 6. Bxc6+ {[%clk 0:02:53]}  bxc6 {[%clk 0:02:55]} 7. d3 {[%clk 0:02:54]}  Bd6 {[%clk 0:02:37]} 8. N1e2 {[%clk 0:02:35]}  h5 {[%clk 0:02:37]} 9. h4 {[%clk 0:02:34]}  Rb8 {[%clk 0:01:52]} 10. b3 {[%clk 0:02:34]}  Bg4 {[%clk 0:01:34]} 11. Qd2 {[%clk 0:02:28]}  Ne7 {[%clk 0:01:16]} 12. f3 {[%clk 0:02:24]}  Bd7 {[%clk 0:01:15]} 13. Qg5 {[%clk 0:02:24]}  Ng6 {[%clk 0:01:13]} 14. Nxh5 {[%clk 0:02:11]}  Be7 {[%clk 0:01:05]} 15. Nxg7+ {[%clk 0:01:51]}  Kf8 {[%clk 0:01:04]} 16. Qg3 {[%clk 0:01:46]}  Kxg7 {[%clk 0:01:03]} 17. h5 {[%clk 0:01:26]}  Bh4 {[%clk 0:01:00]} 18. Rxh4 {[%clk 0:01:26]}  Qxh4 {[%clk 0:00:59]} 19. hxg6 {[%clk 0:01:26]}  Qxg3+ {[%clk 0:00:49]} 20. Nxg3 {[%clk 0:01:27]}  fxg6 {[%clk 0:00:46]} 21. a4 {[%clk 0:01:27]}  Rh2 {[%clk 0:00:28]} 22. Kf2 {[%clk 0:01:27]}  Bh3 {[%clk 0:00:21]} 23. Ne2 {[%clk 0:01:16]}  Rxg2+ {[%clk 0:00:21]} 24. Ke1 {[%clk 0:01:16]}  Rf8 {[%clk 0:00:18]} 25. f4 {[%clk 0:01:06]}  Bg4 {[%clk 0:00:18]} 26. Nxd4 {[%clk 0:00:42]}  exd4 {[%clk 0:00:17]} 27. Kf1 {[%clk 0:00:39]}  Rxc2 {[%clk 0:00:16]} 28. e5 {[%clk 0:00:36]}  Be2+ {[%clk 0:00:16]} 29. Kf2 {[%clk 0:00:33]}  Bxd3+ {[%clk 0:00:16]} 30. Kf3 {[%clk 0:00:34]}  g5 {[%clk 0:00:15]} 31. e6 {[%clk 0:00:28]}  gxf4 {[%clk 0:00:14]} 32. Bxf4 {[%clk 0:00:29]}  Be2+ {[%clk 0:00:10]} 33. Kg3 {[%clk 0:00:29]}  Kf6 {[%clk 0:00:10]} 34. Rh1 {[%clk 0:00:22]}  Rg8+ {[%clk 0:00:09]} 35. Kf2 {[%clk 0:00:19]}  Bd3+ {[%clk 0:00:06]} 36. Kf3 {[%clk 0:00:19]}  Be2+ {[%clk 0:00:05]} 37. Ke4 {[%clk 0:00:18]}  Kxe6 {[%clk 0:00:04]} 38. Rh6+ {[%clk 0:00:18]}  Kf7 {[%clk 0:00:04]} 39. Kf5 {[%clk 0:00:18]}  Bd3+ {[%clk 0:00:03]} 40. Ke5 {[%clk 0:00:18]}  Re2+ {[%clk 0:00:04]} 41. Kd6 {[%clk 0:00:19]}  Rg6+ {[%clk 0:00:04]} 42. Rxg6 {[%clk 0:00:19]}  Kxg6 {[%clk 0:00:05]} 43. Be5 {[%clk 0:00:20]}  Bc2 {[%clk 0:00:04]} 44. Bf4 {[%clk 0:00:20]}  Bxb3 {[%clk 0:00:04]} 45. Kxc5 {[%clk 0:00:20]}  d3 {[%clk 0:00:04]} 46. Kd4 {[%clk 0:00:21]}  d2 {[%clk 0:00:04]} 47. Bxd2 {[%clk 0:00:22]}  Rxd2+ {[%clk 0:00:04]} 48. Kc3 {[%clk 0:00:23]}  Rc2+ {[%clk 0:00:03]} 49. Kxb3 {[%clk 0:00:23]}  Rc1 {[%clk 0:00:03]} 50. Kb2 {[%clk 0:00:24]}  Rc5 {[%clk 0:00:03]} 51. Kb3 {[%clk 0:00:25]}  Ra5 {[%clk 0:00:03]} 52. Kb4 {[%clk 0:00:26]}  Ra6 {[%clk 0:00:03]} 53. a5 {[%clk 0:00:26]}  Kf6 {[%clk 0:00:03]} 54. Kc5 {[%clk 0:00:27]}  Rxa5+ {[%clk 0:00:04]} 55. Kxc6 {[%clk 0:00:28]}  Ra1 {[%clk 0:00:04]} 56. Kb5 {[%clk 0:00:28]}  a5 {[%clk 0:00:05]} 57. Kc4 {[%clk 0:00:29]}  a4 {[%clk 0:00:06]} 58. Kc3 {[%clk 0:00:30]}  Rh1 {[%clk 0:00:06]} 59. Kc2 {[%clk 0:00:31]}  Ke5 {[%clk 0:00:07]} 60. Kb2 {[%clk 0:00:32]}  Kd4 {[%clk 0:00:07]} 61. Ka3 {[%clk 0:00:33]}  Kc4 {[%clk 0:00:08]} 62. Kxa4 {[%clk 0:00:34]}  Ra1# {[%clk 0:00:08]} 0-1


[Site "https://www.chess.com"]

[Event "Titled Tuesday Blitz March 28 Late 2023"]
[White "Stanisz, Patryk"]
[Black "dDobravcan"]
[WhiteFideId "1123106"]
[WhiteElo "2069"]
[BlackElo "2131"]
[Result "1-0"]
[Round "07"]
[TimeControl "180+2"]
[Date "2023.03.28"]
[WhiteClock "0:00:35"]
[BlackClock "0:00:46"]

1. d4 {[%clk 0:02:56]}  d6 {[%clk 0:02:59]} 2. c3 {[%clk 0:02:56]}  Nd7 {[%clk 0:02:55]} 3. d5 {[%clk 0:02:52]}  e6 {[%clk 0:02:52]} 4. e4 {[%clk 0:02:51]}  Ngf6 {[%clk 0:02:51]} 5. Bd3 {[%clk 0:02:47]}  exd5 {[%clk 0:02:48]} 6. exd5 {[%clk 0:02:47]}  Nxd5 {[%clk 0:02:47]} 7. Bxh7 {[%clk 0:02:43]}  Nxc3 {[%clk 0:02:40]} 8. Nxc3 {[%clk 0:02:41]}  Rxh7 {[%clk 0:02:39]} 9. Nf3 {[%clk 0:02:39]}  c6 {[%clk 0:02:34]} 10. Bg5 {[%clk 0:02:19]}  Qa5 {[%clk 0:02:28]} 11. Qd3 {[%clk 0:02:13]}  g6 {[%clk 0:02:13]} 12. O-O-O {[%clk 0:01:58]}  Nc5 {[%clk 0:01:56]} 13. Rhe1+ {[%clk 0:01:48]}  Ne6 {[%clk 0:01:54]} 14. Bf6 {[%clk 0:01:34]}  Bh6+ {[%clk 0:01:48]} 15. Kb1 {[%clk 0:01:34]}  d5 {[%clk 0:01:45]} 16. Nd4 {[%clk 0:01:20]}  Kf8 {[%clk 0:01:28]} 17. Nxe6+ {[%clk 0:01:11]}  Bxe6 {[%clk 0:01:27]} 18. Rxe6 {[%clk 0:01:07]}  fxe6 {[%clk 0:01:24]} 19. Qxg6 {[%clk 0:01:06]}  Bg7 {[%clk 0:01:10]} 20. Qxh7 {[%clk 0:00:52]}  Bxf6 {[%clk 0:01:10]} 21. Qxb7 {[%clk 0:00:47]}  Re8 {[%clk 0:01:03]} 22. Rd3 {[%clk 0:00:46]}  Re7 {[%clk 0:01:00]} 23. Qxc6 {[%clk 0:00:42]}  Kf7 {[%clk 0:00:54]} 24. Rf3 {[%clk 0:00:39]}  Qb4 {[%clk 0:00:49]} 25. Rxf6+ {[%clk 0:00:35]}  Kxf6 {[%clk 0:00:46]} 26. Nxd5+ {[%clk 0:00:35]} 1-0


[Site "https://www.chess.com"]

[Event "Titled Tuesday Blitz March 28 Late 2023"]
[White "Sanchez, Robert"]
[Black "Barria Santos, Jose Guilherme"]
[WhiteFideId "2034360"]
[BlackFideId "1939300"]
[WhiteElo "2079"]
[BlackElo "2301"]
[Result "0-1"]
[Round "07"]
[TimeControl "180+2"]
[Date "2023.03.28"]
[WhiteClock "0:00:02"]
[BlackClock "0:00:06"]

1. e4 {[%clk 0:02:42]}  c5 {[%clk 0:02:54]} 2. Nf3 {[%clk 0:02:41]}  d6 {[%clk 0:02:54]} 3. d4 {[%clk 0:02:42]}  cxd4 {[%clk 0:02:55]} 4. Nxd4 {[%clk 0:02:42]}  Nf6 {[%clk 0:02:55]} 5. Nc3 {[%clk 0:02:43]}  a6 {[%clk 0:02:55]} 6. Be3 {[%clk 0:02:43]}  e5 {[%clk 0:02:55]} 7. Nb3 {[%clk 0:02:43]}  Be6 {[%clk 0:02:55]} 8. f3 {[%clk 0:02:43]}  Be7 {[%clk 0:02:55]} 9. Qd2 {[%clk 0:02:44]}  h5 {[%clk 0:02:56]} 10. O-O-O {[%clk 0:02:44]}  Nbd7 {[%clk 0:02:56]} 11. Kb1 {[%clk 0:02:42]}  Rc8 {[%clk 0:02:57]} 12. Nd5 {[%clk 0:02:41]}  Bxd5 {[%clk 0:02:55]} 13. exd5 {[%clk 0:02:42]}  b5 {[%clk 0:02:56]} 14. Be2 {[%clk 0:02:26]}  Nb6 {[%clk 0:02:55]} 15. Bxb6 {[%clk 0:02:26]}  Qxb6 {[%clk 0:02:56]} 16. c4 {[%clk 0:02:14]}  bxc4 {[%clk 0:02:45]} 17. Qc3 {[%clk 0:02:06]}  O-O {[%clk 0:02:39]} 18. Bxc4 {[%clk 0:02:04]}  a5 {[%clk 0:02:28]} 19. Nxa5 {[%clk 0:01:58]}  Ra8 {[%clk 0:02:24]} 20. Nc6 {[%clk 0:01:56]}  Bd8 {[%clk 0:02:17]} 21. Bb3 {[%clk 0:01:36]}  Nd7 {[%clk 0:02:15]} 22. g4 {[%clk 0:01:26]}  Bf6 {[%clk 0:02:11]} 23. Qc2 {[%clk 0:01:12]}  hxg4 {[%clk 0:02:04]} 24. fxg4 {[%clk 0:01:11]}  Nc5 {[%clk 0:02:05]} 25. h4 {[%clk 0:01:08]}  e4 {[%clk 0:01:19]} 26. g5 {[%clk 0:01:05]}  Bd8 {[%clk 0:00:55]} 27. Rhe1 {[%clk 0:00:58]}  Re8 {[%clk 0:00:48]} 28. Qc4 {[%clk 0:00:46]}  e3 {[%clk 0:00:39]} 29. Rd4 {[%clk 0:00:23]}  f6 {[%clk 0:00:21]} 30. g6 {[%clk 0:00:22]}  f5 {[%clk 0:00:20]} 31. Rf4 {[%clk 0:00:18]}  Bf6 {[%clk 0:00:20]} 32. Rxf5 {[%clk 0:00:18]}  Re4 {[%clk 0:00:19]} 33. Qe2 {[%clk 0:00:18]}  Nxb3 {[%clk 0:00:19]} 34. Qh5 {[%clk 0:00:17]}  Nd2+ {[%clk 0:00:19]} 35. Kc2 {[%clk 0:00:17]}  Rc4+ {[%clk 0:00:15]} 36. Kd3 {[%clk 0:00:16]}  Rc3+ {[%clk 0:00:09]} 37. bxc3 {[%clk 0:00:13]}  Qb5+ {[%clk 0:00:09]} 38. Kxe3 {[%clk 0:00:12]}  Nc4+ {[%clk 0:00:07]} 39. Kf2 {[%clk 0:00:07]}  Rxa2+ {[%clk 0:00:06]} 40. Kg3 {[%clk 0:00:02]} 0-1


[Site "https://www.chess.com"]

[Event "Titled Tuesday Blitz March 28 Late 2023"]
[White "Nakamura, Hikaru"]
[Black "Sadhwani, Raunak"]
[WhiteFideId "2016192"]
[BlackFideId "35093487"]
[WhiteElo "2879"]
[BlackElo "2631"]
[Result "0-1"]
[Round "08"]
[TimeControl "180+2"]
[Date "2023.03.28"]
[WhiteClock "0:00:02"]
[BlackClock "0:00:03"]

1. e4 {[%clk 0:03:00]}  e5 {[%clk 0:02:59]} 2. Nf3 {[%clk 0:03:00]}  Nc6 {[%clk 0:02:59]} 3. Bb5 {[%clk 0:02:57]}  Nf6 {[%clk 0:03:00]} 4. d3 {[%clk 0:02:57]}  Bc5 {[%clk 0:03:00]} 5. O-O {[%clk 0:02:58]}  Nd4 {[%clk 0:02:56]} 6. Be3 {[%clk 0:02:58]}  Nxf3+ {[%clk 0:02:50]} 7. Qxf3 {[%clk 0:02:57]}  Bxe3 {[%clk 0:02:49]} 8. Qxe3 {[%clk 0:02:58]}  c6 {[%clk 0:02:46]} 9. Bc4 {[%clk 0:02:57]}  O-O {[%clk 0:02:38]} 10. Bb3 {[%clk 0:02:57]}  Qb6 {[%clk 0:02:14]} 11. Qxb6 {[%clk 0:02:49]}  axb6 {[%clk 0:02:15]} 12. Nd2 {[%clk 0:02:49]}  b5 {[%clk 0:02:00]} 13. c4 {[%clk 0:02:40]}  d6 {[%clk 0:01:39]} 14. cxb5 {[%clk 0:02:40]}  cxb5 {[%clk 0:01:40]} 15. Rfc1 {[%clk 0:02:29]}  Be6 {[%clk 0:00:37]} 16. Bxe6 {[%clk 0:02:20]}  fxe6 {[%clk 0:00:37]} 17. a3 {[%clk 0:02:21]}  Rfc8 {[%clk 0:00:34]} 18. Kf1 {[%clk 0:01:55]}  Nd7 {[%clk 0:00:34]} 19. Ke2 {[%clk 0:01:51]}  Kf7 {[%clk 0:00:35]} 20. g3 {[%clk 0:01:35]}  Nc5 {[%clk 0:00:30]} 21. b4 {[%clk 0:01:29]}  Na4 {[%clk 0:00:23]} 22. Nb3 {[%clk 0:01:27]}  Ke7 {[%clk 0:00:21]} 23. d4 {[%clk 0:01:17]}  Nb2 {[%clk 0:00:14]} 24. Na5 {[%clk 0:00:31]}  exd4 {[%clk 0:00:12]} 25. Nxb7 {[%clk 0:00:27]}  Nc4 {[%clk 0:00:11]} 26. f4 {[%clk 0:00:17]}  Kd7 {[%clk 0:00:08]} 27. Kd3 {[%clk 0:00:15]}  e5 {[%clk 0:00:04]} 28. Rc2 {[%clk 0:00:10]}  Rc7 {[%clk 0:00:03]} 29. Na5 {[%clk 0:00:06]}  Nxa5 {[%clk 0:00:04]} 30. bxa5 {[%clk 0:00:07]}  Rxa5 {[%clk 0:00:04]} 31. Rxc7+ {[%clk 0:00:06]}  Kxc7 {[%clk 0:00:05]} 32. Kc2 {[%clk 0:00:06]}  Ra4 {[%clk 0:00:05]} 33. Kb3 {[%clk 0:00:05]}  Rc4 {[%clk 0:00:06]} 34. fxe5 {[%clk 0:00:06]}  dxe5 {[%clk 0:00:07]} 35. Rg1 {[%clk 0:00:07]}  Kb6 {[%clk 0:00:07]} 36. Rf1 {[%clk 0:00:07]}  Rc3+ {[%clk 0:00:07]} 37. Kb4 {[%clk 0:00:07]}  Rc4+ {[%clk 0:00:07]} 38. Kb3 {[%clk 0:00:07]}  d3 {[%clk 0:00:07]} 39. Rd1 {[%clk 0:00:06]}  Rd4 {[%clk 0:00:07]} 40. Kc3 {[%clk 0:00:07]}  Ka5 {[%clk 0:00:08]} 41. Kd2 {[%clk 0:00:06]}  Rxe4 {[%clk 0:00:06]} 42. Rf1 {[%clk 0:00:06]}  Rd4 {[%clk 0:00:06]} 43. Rf7 {[%clk 0:00:07]}  e4 {[%clk 0:00:06]} 44. Ra7+ {[%clk 0:00:04]}  Kb6 {[%clk 0:00:06]} 45. Re7 {[%clk 0:00:05]}  Kc5 {[%clk 0:00:06]} 46. Rc7+ {[%clk 0:00:02]}  Kd6 {[%clk 0:00:04]} 47. Rc8 {[%clk 0:00:02]}  Rd5 {[%clk 0:00:03]} 0-1


[Site "https://www.chess.com"]

[Event "Titled Tuesday Blitz March 28 Late 2023"]
[White "Xiong, Jeffery"]
[Black "Bortnyk, Olexandr"]
[WhiteFideId "2047640"]
[BlackFideId "14120828"]
[WhiteElo "2726"]
[BlackElo "2734"]
[Result "0-1"]
[Round "08"]
[TimeControl "180+2"]
[Date "2023.03.28"]
[WhiteClock "0:01:49"]
[BlackClock "0:01:12"]

1. e4 {[%clk 0:03:00]}  Nf6 {[%clk 0:03:00]} 2. e5 {[%clk 0:03:01]}  Nd5 {[%clk 0:03:00]} 3. c4 {[%clk 0:03:01]}  Nb6 {[%clk 0:03:00]} 4. d4 {[%clk 0:03:01]}  d6 {[%clk 0:03:01]} 5. f4 {[%clk 0:03:02]}  dxe5 {[%clk 0:03:02]} 6. fxe5 {[%clk 0:03:03]}  Bf5 {[%clk 0:03:02]} 7. Nc3 {[%clk 0:03:03]}  e6 {[%clk 0:03:03]} 8. Nf3 {[%clk 0:03:04]}  Bb4 {[%clk 0:03:04]} 9. Bd3 {[%clk 0:02:59]}  c5 {[%clk 0:03:05]} 10. Bg5 {[%clk 0:02:53]}  Qd7 {[%clk 0:03:04]} 11. Bxf5 {[%clk 0:02:53]}  exf5 {[%clk 0:03:05]} 12. d5 {[%clk 0:02:52]}  Bxc3+ {[%clk 0:03:04]} 13. bxc3 {[%clk 0:02:51]}  O-O {[%clk 0:03:05]} 14. Qb3 {[%clk 0:02:42]}  Qa4 {[%clk 0:02:49]} 15. Qxa4 {[%clk 0:02:40]}  Nxa4 {[%clk 0:02:50]} 16. Ke2 {[%clk 0:02:28]}  Nd7 {[%clk 0:02:47]} 17. Rhe1 {[%clk 0:02:23]}  Rfe8 {[%clk 0:02:43]} 18. Kd2 {[%clk 0:02:13]}  Nb2 {[%clk 0:02:42]} 19. e6 {[%clk 0:02:12]}  Nxc4+ {[%clk 0:02:30]} 20. Kd3 {[%clk 0:02:12]}  Ndb6 {[%clk 0:02:30]} 21. e7 {[%clk 0:02:07]}  f6 {[%clk 0:02:12]} 22. Bf4 {[%clk 0:02:02]}  Nxd5 {[%clk 0:02:12]} 23. Kxc4 {[%clk 0:02:03]}  Nxf4 {[%clk 0:02:12]} 24. Rad1 {[%clk 0:02:02]}  Nxg2 {[%clk 0:02:08]} 25. Re2 {[%clk 0:02:02]}  Nf4 {[%clk 0:02:08]} 26. Ree1 {[%clk 0:02:02]}  Kf7 {[%clk 0:01:59]} 27. Rd7 {[%clk 0:02:02]}  b6 {[%clk 0:02:00]} 28. h4 {[%clk 0:02:00]}  Ng6 {[%clk 0:01:58]} 29. h5 {[%clk 0:01:59]}  Nxe7 {[%clk 0:01:57]} 30. Nh4 {[%clk 0:01:59]}  Kf8 {[%clk 0:01:51]} 31. Rg1 {[%clk 0:01:59]}  a6 {[%clk 0:01:32]} 32. a4 {[%clk 0:01:59]}  b5+ {[%clk 0:01:28]} 33. axb5 {[%clk 0:02:00]}  axb5+ {[%clk 0:01:29]} 34. Kxb5 {[%clk 0:02:01]}  Reb8+ {[%clk 0:01:28]} 35. Kxc5 {[%clk 0:01:56]}  Rc8+ {[%clk 0:01:28]} 36. Kb6 {[%clk 0:01:50]}  Rab8+ {[%clk 0:01:18]} 37. Ka7 {[%clk 0:01:49]}  Nc6+ {[%clk 0:01:12]} 38. Ka6 {[%clk 0:01:49]}  Rb3 {[%clk 0:01:12]} 0-1


[Site "https://www.chess.com"]

[Event "Titled Tuesday Blitz March 28 Late 2023"]
[White "Svane, Rasmus"]
[Black "Durarbayli, Vasif"]
[WhiteFideId "4657101"]
[BlackFideId "13402935"]
[WhiteElo "2597"]
[BlackElo "2543"]
[Result "0-1"]
[Round "08"]
[TimeControl "180+2"]
[Date "2023.03.28"]
[WhiteClock "0:00:03"]
[BlackClock "0:00:13"]

1. Nf3 {[%clk 0:03:00]}  c5 {[%clk 0:02:59]} 2. c4 {[%clk 0:02:59]}  Nf6 {[%clk 0:02:59]} 3. Nc3 {[%clk 0:02:58]}  e6 {[%clk 0:03:00]} 4. e3 {[%clk 0:02:57]}  Nc6 {[%clk 0:03:00]} 5. d4 {[%clk 0:02:58]}  d5 {[%clk 0:03:01]} 6. a3 {[%clk 0:02:58]}  dxc4 {[%clk 0:02:59]} 7. Bxc4 {[%clk 0:02:59]}  cxd4 {[%clk 0:02:59]} 8. exd4 {[%clk 0:02:59]}  Be7 {[%clk 0:02:59]} 9. O-O {[%clk 0:02:58]}  O-O {[%clk 0:02:59]} 10. Re1 {[%clk 0:02:59]}  Nd5 {[%clk 0:02:55]} 11. Qd3 {[%clk 0:02:46]}  Bf6 {[%clk 0:02:52]} 12. Bb3 {[%clk 0:02:40]}  Nce7 {[%clk 0:02:49]} 13. Ne4 {[%clk 0:02:35]}  Bd7 {[%clk 0:02:36]} 14. h4 {[%clk 0:02:33]}  Bc6 {[%clk 0:02:29]} 15. Neg5 {[%clk 0:02:26]}  g6 {[%clk 0:02:23]} 16. Bd2 {[%clk 0:02:08]}  Nf5 {[%clk 0:02:16]} 17. h5 {[%clk 0:01:23]}  Re8 {[%clk 0:02:03]} 18. hxg6 {[%clk 0:01:22]}  hxg6 {[%clk 0:02:03]} 19. Rad1 {[%clk 0:01:17]}  Nc7 {[%clk 0:01:23]} 20. Bf4 {[%clk 0:01:11]}  Bxf3 {[%clk 0:01:12]} 21. Nxf3 {[%clk 0:01:10]}  Nd5 {[%clk 0:01:12]} 22. Bd2 {[%clk 0:00:59]}  Kg7 {[%clk 0:01:09]} 23. Ne5 {[%clk 0:00:55]}  Rh8 {[%clk 0:01:00]} 24. Bc3 {[%clk 0:00:51]}  Bxe5 {[%clk 0:00:53]} 25. Rxe5 {[%clk 0:00:19]}  Qh4 {[%clk 0:00:53]} 26. Qh3 {[%clk 0:00:17]}  Qxh3 {[%clk 0:00:45]} 27. gxh3 {[%clk 0:00:18]}  Nxc3 {[%clk 0:00:46]} 28. bxc3 {[%clk 0:00:19]}  Rxh3 {[%clk 0:00:46]} 29. d5 {[%clk 0:00:20]}  Rxc3 {[%clk 0:00:39]} 30. Rb1 {[%clk 0:00:17]}  Kf6 {[%clk 0:00:36]} 31. Re4 {[%clk 0:00:14]}  e5 {[%clk 0:00:34]} 32. Bd1 {[%clk 0:00:10]}  Nd6 {[%clk 0:00:32]} 33. Ra4 {[%clk 0:00:08]}  b6 {[%clk 0:00:21]} 34. Kf1 {[%clk 0:00:07]}  e4 {[%clk 0:00:14]} 35. Rxb6 {[%clk 0:00:04]}  axb6 {[%clk 0:00:15]} 36. Rxa8 {[%clk 0:00:04]}  Rd3 {[%clk 0:00:15]} 37. Be2 {[%clk 0:00:04]}  Rxd5 {[%clk 0:00:16]} 38. Rb8 {[%clk 0:00:04]}  b5 {[%clk 0:00:16]} 39. Rb6 {[%clk 0:00:05]}  Ke5 {[%clk 0:00:16]} 40. Ke1 {[%clk 0:00:04]}  f5 {[%clk 0:00:16]} 41. Bd1 {[%clk 0:00:04]}  g5 {[%clk 0:00:17]} 42. Bb3 {[%clk 0:00:05]}  Rd3 {[%clk 0:00:17]} 43. Bg8 {[%clk 0:00:03]}  Rxa3 {[%clk 0:00:17]} 44. Rb8 {[%clk 0:00:03]}  Rd3 {[%clk 0:00:13]} 45. Bh7 {[%clk 0:00:03]}  Kf4 {[%clk 0:00:13]} 46. Ke2 {[%clk 0:00:03]}  g4 {[%clk 0:00:13]} 47. Bg6 {[%clk 0:00:03]}  g3 {[%clk 0:00:12]} 48. fxg3+ {[%clk 0:00:04]}  Rxg3 {[%clk 0:00:12]} 49. Bh7 {[%clk 0:00:04]}  Rg2+ {[%clk 0:00:13]} 50. Kf1 {[%clk 0:00:03]}  Rh2 {[%clk 0:00:14]} 51. Bg8 {[%clk 0:00:04]}  Kf3 {[%clk 0:00:13]} 52. Rb6 {[%clk 0:00:03]}  Rh1# {[%clk 0:00:13]} 0-1


[Site "https://www.chess.com"]

[Event "Titled Tuesday Blitz March 28 Late 2023"]
[White "Terry, Renato"]
[Black "Martinez Alcantara, Jose Eduardo"]
[WhiteFideId "3803457"]
[BlackFideId "3805662"]
[WhiteElo "2579"]
[BlackElo "2712"]
[Result "0-1"]
[Round "08"]
[TimeControl "180+2"]
[Date "2023.03.28"]
[WhiteClock "0:00:01"]
[BlackClock "0:01:28"]

1. b4 {[%clk 0:02:58]}  Nf6 {[%clk 0:02:56]} 2. Bb2 {[%clk 0:02:58]}  g6 {[%clk 0:02:56]} 3. g4 {[%clk 0:02:54]}  Bg7 {[%clk 0:02:54]} 4. g5 {[%clk 0:02:48]}  Nh5 {[%clk 0:02:54]} 5. d4 {[%clk 0:02:43]}  e6 {[%clk 0:02:48]} 6. Nf3 {[%clk 0:02:40]}  Qe7 {[%clk 0:02:46]} 7. a3 {[%clk 0:02:38]}  d6 {[%clk 0:02:47]} 8. e3 {[%clk 0:02:33]}  O-O {[%clk 0:02:45]} 9. Be2 {[%clk 0:02:32]}  Nd7 {[%clk 0:02:45]} 10. h4 {[%clk 0:02:32]}  e5 {[%clk 0:02:43]} 11. Nbd2 {[%clk 0:02:20]}  b6 {[%clk 0:02:36]} 12. c4 {[%clk 0:02:07]}  Bb7 {[%clk 0:02:24]} 13. d5 {[%clk 0:02:06]}  c6 {[%clk 0:02:24]} 14. Qb3 {[%clk 0:01:02]}  a6 {[%clk 0:02:11]} 15. Ne4 {[%clk 0:00:46]}  b5 {[%clk 0:02:05]} 16. c5 {[%clk 0:00:23]}  cxd5 {[%clk 0:01:53]} 17. Nxd6 {[%clk 0:00:23]}  Bc6 {[%clk 0:01:54]} 18. Rd1 {[%clk 0:00:20]}  d4 {[%clk 0:01:49]} 19. O-O {[%clk 0:00:05]}  Kh8 {[%clk 0:01:46]} 20. exd4 {[%clk 0:00:01]}  Nf4 {[%clk 0:01:46]} 21. Rfe1 {[%clk 0:00:01]}  e4 {[%clk 0:01:28]} 0-1


[Site "https://www.chess.com"]

[Event "Titled Tuesday Blitz March 28 Late 2023"]
[White "Bortnyk, Mykola"]
[Black "Andreikin, Dmitry"]
[WhiteFideId "14120836"]
[BlackFideId "4158814"]
[WhiteElo "2582"]
[BlackElo "2736"]
[Result "0-1"]
[Round "08"]
[TimeControl "180+2"]
[Date "2023.03.28"]
[WhiteClock "0:00:37"]
[BlackClock "0:00:34"]

1. e4 {[%clk 0:02:56]}  e6 {[%clk 0:03:00]} 2. Qe2 {[%clk 0:02:53]}  Nc6 {[%clk 0:02:55]} 3. Nf3 {[%clk 0:02:50]}  g5 {[%clk 0:02:55]} 4. h3 {[%clk 0:02:49]}  Bg7 {[%clk 0:02:55]} 5. c3 {[%clk 0:02:49]}  h6 {[%clk 0:02:53]} 6. d4 {[%clk 0:02:49]}  Nge7 {[%clk 0:02:52]} 7. Nbd2 {[%clk 0:02:44]}  Ng6 {[%clk 0:02:50]} 8. g3 {[%clk 0:02:44]}  b6 {[%clk 0:02:46]} 9. Bg2 {[%clk 0:02:44]}  a5 {[%clk 0:02:45]} 10. Qe3 {[%clk 0:02:27]}  Ba6 {[%clk 0:02:45]} 11. Bf1 {[%clk 0:02:13]}  Qc8 {[%clk 0:02:45]} 12. Be2 {[%clk 0:02:10]}  Bxe2 {[%clk 0:02:43]} 13. Qxe2 {[%clk 0:02:11]}  O-O {[%clk 0:02:40]} 14. h4 {[%clk 0:02:07]}  g4 {[%clk 0:02:40]} 15. Nh2 {[%clk 0:02:08]}  f5 {[%clk 0:02:37]} 16. h5 {[%clk 0:02:06]}  Nge7 {[%clk 0:02:36]} 17. f3 {[%clk 0:02:05]}  Nxd4 {[%clk 0:02:23]} 18. cxd4 {[%clk 0:02:04]}  Nc6 {[%clk 0:02:24]} 19. O-O {[%clk 0:01:54]}  Nxd4 {[%clk 0:02:23]} 20. Qd3 {[%clk 0:01:54]}  Qe8 {[%clk 0:01:41]} 21. exf5 {[%clk 0:01:46]}  exf5 {[%clk 0:01:37]} 22. fxg4 {[%clk 0:01:45]}  fxg4 {[%clk 0:01:01]} 23. Rxf8+ {[%clk 0:01:45]}  Kxf8 {[%clk 0:01:02]} 24. Nb3 {[%clk 0:01:22]}  Qe1+ {[%clk 0:00:44]} 25. Kg2 {[%clk 0:01:16]}  Nxb3 {[%clk 0:00:42]} 26. axb3 {[%clk 0:00:41]}  Re8 {[%clk 0:00:42]} 27. Qf1+ {[%clk 0:00:41]}  Qxf1+ {[%clk 0:00:38]} 28. Kxf1 {[%clk 0:00:42]}  Re5 {[%clk 0:00:34]} 29. Nxg4 {[%clk 0:00:40]}  Rxh5 {[%clk 0:00:35]} 30. Bf4 {[%clk 0:00:37]}  Rh1+ {[%clk 0:00:34]} 0-1


[Site "https://www.chess.com"]